bitfinex/quotes_BTCUSD_20260307
["timestamp","ask_amount","ask_price","bid_price","bid_amount"]
[1772911258869,0.02864318,67447.0,67440.0,0.00134877]
[1772911259094,0.02864318,67447.0,67438.0,0.0929743]
[1772911259275,0.02864318,67447.0,67439.0,0.00152]
[1772911259653,0.10247256,67446.0,67439.0,0.00152]
[1772911259854,0.10247256,67446.0,67438.0,0.0929743]
[1772911259855,0.07413338,67446.0,67438.0,0.0929743]
[1772911260069,0.07413338,67446.0,67436.0,0.07414364]
[1772911260070,0.02833918,67445.0,67427.0,0.01980312]
[1772911260267,0.02833918,67445.0,67406.0,0.0002]
[1772911260466,0.02833918,67445.0,67410.0,0.01980312]
[1772911260467,0.02874075,67445.0,67410.0,0.01980312]
[1772911260669,0.1154193,67445.0,67412.0,0.01980312]
[1772911260873,0.02803518,67443.0,67413.0,0.00152]
[1772911261098,0.02803518,67443.0,67414.0,0.01980312]
[1772911261305,0.02803518,67443.0,67415.0,0.00152]
[1772911261479,0.02803518,67443.0,67416.0,0.00152]
[1772911261691,0.07413777,67442.0,67417.0,0.00152]
[1772911261887,0.02757203,67441.0,67418.0,0.00152]
[1772911262213,0.03562792,67439.0,67419.0,0.00152]
[1772911262393,0.00632014,67437.0,67419.0,0.00152]
[1772911262582,0.00632014,67435.0,67418.0,0.00152]
[1772911262788,0.00632014,67431.0,67411.0,0.01980312]
[1772911262997,0.02651518,67428.0,67412.0,0.00152]
[1772911263397,0.02651518,67428.0,67411.0,0.01980312]
[1772911263674,0.02651518,67428.0,67412.0,0.00152]
[1772911263875,0.07415427,67427.0,67412.0,0.07417077]
[1772911264088,0.02651518,67426.0,67413.0,0.00152]
[1772911264475,0.02651518,67426.0,67411.0,0.09397471]
[1772911264838,0.02651518,67426.0,67412.0,0.00152]
[1772911265632,0.02651518,67426.0,67412.0,0.01669454]
[1772911266032,0.02651518,67424.0,67413.0,0.08934421]
[1772911266700,0.02651518,67424.0,67413.0,0.07416967]
[1772911266893,0.02651518,67424.0,67414.0,0.01517454]
[1772911267303,0.02651518,67424.0,67414.0,0.01529496]
[1772911268394,0.02651518,67422.0,67414.0,0.01529496]
[1772911268791,0.02651518,67422.0,67415.0,0.00152]
[1772911268995,0.02651518,67422.0,67416.0,0.00152]
[1772911269297,0.02651518,67422.0,67417.0,0.00152]
[1772911269628,0.02651518,67422.0,67415.0,0.00152]
[1772911269835,0.02599672,67420.0,67415.0,0.00152]
[1772911269952,0.03213154,67420.0,67415.0,0.00152]
[1772911270158,0.02599672,67418.0,67407.0,0.014313]
[1772911270361,0.0261171,67418.0,67408.0,0.00152]
[1772911270757,0.0261171,67418.0,67408.0,0.015833]
[1772911271052,0.0222535,67418.0,67408.0,0.015833]
[1772911272293,0.10016198,67417.0,67409.0,0.07417407]
[1772911273086,0.07416526,67417.0,67409.0,0.07417407]
[1772911273294,0.07415944,67423.0,67410.0,0.014313]
[1772911273490,0.07415944,67423.0,67410.0,0.01443338]
[1772911273899,0.07415131,67430.0,67410.0,0.01443338]
[1772911274101,0.07414779,67433.0,67413.0,0.014313]
[1772911274331,0.10014451,67433.0,67415.0,0.014313]
[1772911275913,0.02599672,67432.0,67415.0,0.014313]
[1772911276679,0.07414217,67438.0,67416.0,0.07416637]
[1772911276865,0.02599672,67437.0,67418.0,0.014313]
[1772911277234,0.00022001,67426.0,67418.0,0.014313]
[1772911279466,0.07414767,67433.0,67419.0,0.07416306]
[1772911279668,0.02599672,67439.0,67421.0,0.01791889]
[1772911279873,0.02599672,67439.0,67422.0,0.014313]
[1772911280104,0.07413667,67444.0,67420.0,0.00152]
[1772911280105,0.10013281,67444.0,67425.0,0.01759589]
[1772911280453,0.10013281,67444.0,67427.0,0.014313]
[1772911281152,0.02599672,67444.0,67427.0,0.014313]
[1772911281566,0.02599672,67444.0,67428.0,0.07415317]
[1772911281856,0.10013243,67444.0,67429.0,0.014313]
[1772911282034,0.07097722,67444.0,67429.0,0.014313]
[1772911282236,0.07413238,67447.0,67429.0,0.014313]
[1772911282643,0.07413238,67447.0,67431.0,0.014313]
[1772911282844,0.07413238,67447.0,67433.0,0.01696061]
[1772911283016,0.07413238,67447.0,67434.0,0.014313]
[1772911283215,0.07413125,67448.0,67434.0,0.014313]
[1772911283887,0.07453314,67448.0,67436.0,0.014313]
[1772911284662,0.07453314,67448.0,67436.0,0.01414178]
[1772911285048,0.00040189,67448.0,67436.0,0.01414178]
[1772911285249,0.00062001,67450.0,67436.0,0.01414178]
[1772911285483,0.00074045,67450.0,67436.0,0.01414178]
[1772911285671,1e-08,67457.0,67438.0,0.07414217]
[1772911285921,1e-08,67457.0,67442.0,0.014313]
[1772911286125,0.07450207,67475.0,67446.0,0.014313]
[1772911286321,0.02599672,67474.0,67451.0,0.171724]
[1772911286472,0.02599672,67474.0,67452.0,0.015833]
[1772911286779,0.02599672,67474.0,67450.0,0.01521317]
[1772911286780,0.02599672,67474.0,67454.0,0.014313]
[1772911287711,0.10010024,67474.0,67457.0,0.07412129]
[1772911287884,0.10010024,67474.0,67458.0,0.014313]
[1772911288101,0.10010024,67474.0,67457.0,0.07412129]
[1772911288102,0.02599672,67473.0,67460.0,0.014313]
[1772911288296,0.07410352,67474.0,67458.0,0.00152]
[1772911288297,0.02599672,67471.0,67458.0,0.00152]
[1772911288500,0.0096813,67468.0,67456.0,0.00052]
[1772911288705,0.03567802,67465.0,67456.0,0.00152]
[1772911288881,0.02599672,67464.0,67456.0,0.00152]
[1772911289082,0.02599672,67462.0,67447.0,0.014313]
[1772911289286,0.02599672,67461.0,67448.0,0.00152]
[1772911289699,0.00152,67469.0,67443.0,0.07413667]
[1772911289700,0.07411573,67463.0,67443.0,0.014313]
[1772911289934,0.07411573,67463.0,67445.0,0.014313]
[1772911290327,0.10011245,67463.0,67445.0,0.014313]
[1772911290751,0.02599672,67463.0,67445.0,0.014313]
[1772911290918,0.07411169,67466.0,67447.0,0.014313]
[1772911291121,0.07411169,67466.0,67448.0,0.014313]
[1772911291357,0.10010714,67467.0,67448.0,0.014313]
[1772911291862,0.10010714,67467.0,67449.0,0.07413008]
[1772911292071,0.10010714,67467.0,67450.0,0.015833]
[1772911292413,0.02614976,67466.0,67450.0,0.015833]
[1772911293085,0.07411042,67467.0,67450.0,0.015833]
[1772911293997,0.07433043,67467.0,67452.0,0.014313]
[1772911294172,0.10048019,67467.0,67452.0,0.014313]
[1772911295047,0.02614976,67466.0,67452.0,0.014313]
[1772911295926,0.0741125,67465.0,67453.0,0.07412568]
[1772911296126,0.10026226,67465.0,67453.0,0.08843868]
[1772911296330,0.02614976,67464.0,67453.0,0.08843868]
[1772911296923,0.02614976,67464.0,67454.0,0.014313]
[1772911297564,0.07433043,67467.0,67454.0,0.014313]
[1772911297865,0.10048019,67467.0,67454.0,0.0141418]
[1772911298071,0.02614976,67466.0,67455.0,0.07412348]
[1772911298242,0.10026195,67466.0,67456.0,0.01620866]
[1772911298447,0.02614976,67463.0,67447.0,0.01468866]
[1772911298652,0.00962602,67461.0,67447.0,0.01468866]
[1772911298830,0.02614976,67460.0,67448.0,0.00152]
[1772911299640,0.02614976,67460.0,67447.0,0.01468866]
[1772911299848,0.02614976,67460.0,67449.0,0.00152]
[1772911300247,0.02614976,67460.0,67447.0,0.01468866]
[1772911300248,0.02614976,67458.0,67450.0,0.00152]
[1772911300447,0.02614976,67456.0,67450.0,0.00152]
[1772911300864,0.02614976,67456.0,67448.0,0.07413118]
[1772911301035,0.02614976,67456.0,67451.0,0.00152]
[1772911301438,0.02614976,67456.0,67452.0,0.00152]
[1772911301888,0.02614976,67456.0,67448.0,0.07413118]
[1772911302087,0.02614976,67456.0,67453.0,0.00152]
[1772911302485,0.02614976,67456.0,67454.0,0.00152]
[1772911303278,0.07412245,67456.0,67450.0,0.07412895]
[1772911303486,0.00779781,67455.0,67443.0,0.07425706]
[1772911303689,0.02614976,67452.0,67442.0,0.07413727]
[1772911303930,0.02627011,67452.0,67443.0,0.00152]
[1772911304341,0.10027764,67451.0,67443.0,0.00152]
[1772911304577,0.02614976,67451.0,67443.0,0.07565595]
[1772911306484,0.07412898,67450.0,67443.0,0.07565595]
[1772911306682,0.07412898,67450.0,67437.0,0.07414308]
[1772911306917,0.10027874,67450.0,67438.0,0.01620866]
[1772911307544,0.07412898,67450.0,67438.0,0.01620866]
[1772911308167,0.07424933,67452.0,67438.0,0.01620866]
[1772911308693,0.01,67450.0,67440.0,0.01468866]
[1772911308897,0.08412914,67450.0,67440.0,0.01468866]
[1772911309318,0.1102789,67450.0,67440.0,0.01468866]
[1772911310510,0.01,67450.0,67440.0,0.01468866]
[1772911310875,0.01,67450.0,67441.0,0.07413887]
[1772911311076,0.01,67450.0,67442.0,0.01468866]
[1772911311330,0.0741114,67466.0,67442.0,0.01468866]
[1772911311534,0.07411799,67463.0,67442.0,0.01480901]
[1772911311683,0.00022001,67450.0,67442.0,0.01480901]
[1772911312091,0.00022001,67450.0,67442.0,0.01463782]
[1772911313047,0.07380763,67452.0,67443.0,0.07413667]
[1772911313249,0.07361007,67452.0,67444.0,0.00152]
[1772911313468,0.0734246,67452.0,67444.0,0.00152]
[1772911315469,0.07412625,67453.0,67445.0,0.07413447]
[1772911316096,0.07412625,67453.0,67446.0,0.01468866]
[1772911316706,0.08412625,67453.0,67446.0,0.01468866]
[1772911317606,0.08412625,67453.0,67446.0,0.08882142]
[1772911319586,0.08412625,67453.0,67450.0,5.0]
[1772911319796,0.08412625,67453.0,67451.0,0.00152]
[1772911319955,0.08412625,67453.0,67452.0,0.00152]
[1772911320608,0.08512625,67453.0,67452.0,0.00152]
[1772911321945,0.08434626,67453.0,67452.0,0.00152]
[1772911322156,0.08534626,67453.0,67452.0,0.00152]
[1772911322769,0.07534626,67453.0,67452.0,0.00152]
[1772911324883,0.00122001,67453.0,67452.0,0.00152]
[1772911325955,0.01052108,67457.0,67452.0,0.00152]
[1772911326159,0.07563278,67465.0,67452.0,0.00152]
[1772911326160,0.07427176,67465.0,67453.0,0.01500158]
[1772911326545,0.07427176,67465.0,67452.0,0.07564636]
[1772911326745,0.04413536,67468.0,67454.0,0.02558441]
[1772911326890,0.0741092,67470.0,67456.0,0.07412239]
[1772911327129,0.0741092,67470.0,67458.0,0.01500158]
[1772911327351,0.0741092,67470.0,67460.0,0.01500158]
[1772911327930,0.02470159,67468.0,67461.0,0.00152]
[1772911328135,0.02467415,67468.0,67462.0,0.00152]
[1772911328381,0.02354095,67468.0,67463.0,0.00152]
[1772911328553,0.0117256,67467.0,67462.0,0.00152]
[1772911328955,0.07410591,67471.0,67463.0,0.07411469]
[1772911329200,0.07410591,67471.0,67464.0,0.01540026]
[1772911329587,0.07459038,67472.0,67464.0,0.01540026]
[1772911329792,0.001,67467.0,67464.0,0.01540026]
[1772911330388,0.001,67467.0,67463.0,0.08951495]
[1772911330976,0.00022001,67471.0,67463.0,0.08951495]
[1772911330977,0.07410701,67470.0,67463.0,0.08951495]
[1772911332227,0.00022001,67471.0,67463.0,0.08951495]
[1772911332462,0.07410701,67470.0,67464.0,0.01540026]
[1772911332609,0.00022001,67471.0,67464.0,0.01692026]
[1772911333152,0.00022001,67471.0,67465.0,0.0741125]
[1772911333361,0.00022001,67471.0,67466.0,0.01540026]
[1772911335244,0.00022001,67471.0,67466.0,0.08951152]
[1772911335452,0.00022001,67471.0,67466.0,0.07411126]
[1772911335851,0.07432613,67471.0,67462.0,0.07411579]
[1772911336192,0.01156984,67470.0,67463.0,0.00152]
[1772911337763,0.0741081,67469.0,67450.0,5.0]
[1772911337989,0.02354095,67468.0,67451.0,0.00152]
[1772911338176,0.01198946,67465.0,67452.0,0.00152]
[1772911338512,0.01198946,67461.0,67451.0,0.00152]
[1772911340042,0.07411799,67460.0,67451.0,0.00152]
[1772911340242,0.08819687,67460.0,67451.0,0.00152]
[1772911341077,0.08819687,67460.0,67451.0,0.07564724]
[1772911341078,0.07411799,67460.0,67451.0,0.07564724]
[1772911342274,0.07411469,67463.0,67451.0,0.07564724]
[1772911342487,0.01401774,67467.0,67451.0,0.0910475]
[1772911342859,0.01401774,67467.0,67452.0,0.04293804]
[1772911343835,0.01401774,67467.0,67453.0,0.02753778]
[1772911344041,0.01401774,67467.0,67454.0,0.04293804]
[1772911344423,0.07410997,67468.0,67455.0,0.07412348]
[1772911344618,0.07410997,67468.0,67456.0,0.01540026]
[1772911344966,0.01281526,67466.0,67451.0,0.07412707]
[1772911345164,0.01281526,67466.0,67452.0,0.00152]
[1772911345539,0.01281526,67466.0,67451.0,0.07412707]
[1772911345765,0.01281526,67466.0,67453.0,0.00152]
[1772911346190,0.01281526,67466.0,67454.0,0.00152]
[1772911347945,0.0741125,67465.0,67454.0,0.07564364]
[1772911348203,0.08683244,67465.0,67454.0,0.07564364]
[1772911349583,0.0741125,67465.0,67455.0,0.02753778]
[1772911349785,0.0741125,67465.0,67456.0,0.01540026]
[1772911349994,9.518e-05,67468.0,67456.0,0.08952188]
[1772911350200,9.518e-05,67468.0,67456.0,0.01540026]
[1772911350440,9.518e-05,67468.0,67456.0,0.07412239]
[1772911350607,0.01265651,67467.0,67456.0,0.07412239]
[1772911353114,0.0741114,67466.0,67456.0,0.07412239]
[1772911354151,0.0741114,67466.0,67459.0,0.02791202]
[1772911354351,0.0741114,67466.0,67460.0,0.01540026]
[1772911354575,0.0741114,67466.0,67460.0,0.01692026]
[1772911354780,0.07420465,67468.0,67460.0,0.01692026]
[1772911354901,0.08544884,67468.0,67460.0,0.00152]
[1772911355108,0.08544884,67468.0,67453.0,0.07412357]
[1772911355310,0.08544884,67468.0,67454.0,0.00152]
[1772911355311,0.01124419,67467.0,67454.0,0.00152]
[1772911355571,0.01352198,67467.0,67450.0,4.50906947]
[1772911355748,0.01124419,67466.0,67455.0,0.00152]
[1772911357446,0.07420465,67468.0,67455.0,0.00152]
[1772911358304,0.00152,67467.0,67455.0,0.00152]
[1772911358839,0.01137745,67466.0,67453.0,0.02791202]
[1772911358995,0.01137745,67466.0,67453.0,0.00152]
[1772911359806,0.0741125,67465.0,67453.0,0.00152]
[1772911360210,0.01135114,67464.0,67453.0,0.00152]
[1772911360413,0.01135114,67464.0,67451.0,0.07412777]
[1772911360615,0.01135114,67464.0,67453.0,0.00152]
[1772911361407,0.01135114,67464.0,67450.0,3.6682228]
[1772911361608,0.01131904,67459.0,67450.0,3.6682228]
[1772911361898,0.08543923,67458.0,67450.0,3.6682228]
[1772911362365,0.07412019,67458.0,67450.0,3.6682228]
[1772911363856,0.07412019,67459.0,67450.0,3.6682228]
[1772911364961,0.07439409,67459.0,67450.0,3.6682228]
[1772911370390,0.07439409,67459.0,67450.0,2.53056751]
[1772911370589,0.0136866,67458.0,67450.0,2.25052648]
[1772911370788,0.0139605,67458.0,67450.0,2.25052648]
[1772911372325,0.07412129,67457.0,67450.0,2.05483452]
[1772911372540,0.01554853,67456.0,67450.0,2.03172019]
[1772911372681,0.01554853,67454.0,67450.0,2.03172019]
[1772911372887,0.01582243,67454.0,67450.0,1.99762419]
[1772911374031,0.01682243,67454.0,67450.0,1.99762419]
[1772911374237,0.01582243,67454.0,67450.0,1.99762419]
[1772911374641,0.01554853,67452.0,67450.0,1.99762419]
[1772911374844,0.01567868,67452.0,67450.0,1.99762419]
[1772911375251,0.01567868,67452.0,67450.0,1.47196113]
[1772911375406,0.01719868,67452.0,67450.0,1.45686537]
[1772911376497,0.0017939,67452.0,67450.0,1.45686537]
[1772911376682,0.00152,67452.0,67450.0,1.45686537]
[1772911376824,0.00252,67452.0,67450.0,1.45686537]
[1772911377223,0.00152,67452.0,67450.0,1.45686537]
[1772911377439,0.00252,67452.0,67450.0,1.45686537]
[1772911378722,0.07412788,67451.0,67450.0,1.45686537]
[1772911378924,0.07412788,67451.0,67450.0,0.50810831]
[1772911378925,0.08967641,67451.0,67450.0,0.50810831]
[1772911379741,0.08967641,67451.0,67450.0,0.47177492]
[1772911379967,0.08967641,67451.0,67450.0,0.4625254]
[1772911380189,0.07512788,67451.0,67450.0,0.0853001]
[1772911380355,0.0964226,67451.0,67450.0,0.08211438]
[1772911380557,0.0964226,67451.0,67440.0,1e-08]
[1772911380558,0.07413008,67449.0,67440.0,1e-08]
[1772911380802,0.02129472,67448.0,67440.0,1e-08]
[1772911382566,0.02229472,67448.0,67440.0,1e-08]
[1772911382787,0.02129472,67446.0,67440.0,1e-08]
[1772911382964,0.02129472,67444.0,67440.0,1e-08]
[1772911383921,0.02137202,67444.0,67440.0,1e-08]
[1772911385332,0.07421287,67444.0,67440.0,1e-08]
[1772911385886,0.02129472,67443.0,67440.0,1e-08]
[1772911387486,0.02129472,67441.0,67440.0,1e-08]
[1772911389452,0.09743359,67441.0,67440.0,1e-08]
[1772911390074,0.07613887,67441.0,67440.0,1e-08]
[1772911391351,0.00152,67449.0,67440.0,1e-08]
[1772911391646,0.07413118,67448.0,67441.0,0.07088433]
[1772911392052,0.07413118,67448.0,67441.0,0.04802384]
[1772911392253,0.00046677,67447.0,67441.0,0.04802384]
[1772911394470,0.07459911,67447.0,67441.0,0.04802384]
[1772911395079,0.00046677,67447.0,67441.0,0.12216171]
[1772911395458,0.00046677,67447.0,67441.0,0.04802384]
[1772911396078,0.07459947,67447.0,67440.0,0.0004019]
[1772911396283,0.07459947,67447.0,67441.0,0.04802384]
[1772911397509,0.08459947,67447.0,67441.0,0.04802384]
[1772911397731,0.08459947,67447.0,67440.0,0.0004019]
[1772911398043,0.08459947,67447.0,67441.0,0.04802384]
[1772911398244,0.08459947,67447.0,67440.0,0.0004019]
[1772911401399,0.02161713,67446.0,67436.0,0.0002]
[1772911401612,0.02201865,67446.0,67436.0,0.0002]
[1772911402428,0.07413447,67445.0,67436.0,0.0002]
[1772911403926,0.02161713,67444.0,67433.0,0.0002]
[1772911404127,0.02161713,67442.0,67433.0,0.0002]
[1772911404426,0.02161713,67440.0,67433.0,0.0002]
[1772911405523,0.02161713,67440.0,67427.0,0.07435419]
[1772911405524,0.02161713,67440.0,67430.0,1e-08]
[1772911405727,0.02161713,67438.0,67430.0,1e-08]
[1772911405927,0.02161713,67436.0,67430.0,1e-08]
[1772911406328,0.02161713,67433.0,67430.0,1e-08]
[1772911406535,0.02161713,67433.0,67422.0,0.0002]
[1772911407251,0.02161713,67431.0,67419.0,1e-08]
[1772911407553,0.02161713,67429.0,67419.0,1e-08]
[1772911408238,0.02161713,67419.0,67400.0,0.0012]
[1772911408444,0.02161713,67416.0,67400.0,0.0012]
[1772911408844,0.02161713,67414.0,67400.0,0.0491248]
[1772911409165,0.02161713,67414.0,67400.0,0.0012]
[1772911409342,0.02161713,67414.0,67400.0,0.00132035]
[1772911409545,0.02161713,67409.0,67400.0,0.00132035]
[1772911409803,0.00152,67408.0,67400.0,0.00132035]
[1772911409949,0.00152,67407.0,67400.0,0.04924515]
[1772911410145,0.00152,67406.0,67400.0,0.04924515]
[1772911410385,0.00152,67405.0,67401.0,0.02286049]
[1772911410692,0.07569847,67405.0,67400.0,0.00132035]
[1772911410993,0.07417957,67404.0,67400.0,0.00132035]
[1772911411672,0.07416196,67420.0,67401.0,0.07418287]
[1772911411838,0.00152,67417.0,67403.0,0.02286049]
[1772911412038,0.00152,67417.0,67405.0,0.02286049]
[1772911412364,0.07416637,67416.0,67407.0,0.07417627]
[1772911412568,0.07416637,67416.0,67408.0,0.02286049]
[1772911413445,0.00152,67415.0,67408.0,0.02286049]
[1772911413893,0.00152,67414.0,67408.0,0.02286049]
[1772911414099,0.00152,67417.0,67410.0,0.02286049]
[1772911414294,0.0957692,67429.0,67411.0,0.02286049]
[1772911414501,0.07567317,67428.0,67413.0,0.02286049]
[1772911414698,0.0972903,67428.0,67413.0,0.02286049]
[1772911414899,0.02161713,67427.0,67413.0,0.02286049]
[1772911415203,0.22152,67426.0,67413.0,0.02286049]
[1772911416403,0.07415647,67425.0,67415.0,0.02286049]
[1772911417618,0.02161713,67424.0,67411.0,0.07417131]
[1772911417815,0.04614422,67423.0,67408.0,0.07417516]
[1772911418018,0.02161713,67420.0,67406.0,0.097037]
[1772911418232,0.04614422,67415.0,67394.0,0.00152]
[1772911418443,0.04614422,67415.0,67386.0,0.02190171]
[1772911418444,0.04614422,67403.0,67386.0,0.02190171]
[1772911418645,0.01171263,67400.0,67386.0,0.09622133]
[1772911418845,0.00152,67399.0,67386.0,0.09622133]
[1772911419111,0.00152,67399.0,67386.0,0.07451962]
[1772911419372,0.00152,67399.0,67387.0,0.02170171]
[1772911420445,0.07418617,67398.0,67394.0,0.001]
[1772911420651,0.07418617,67398.0,67388.0,0.07419663]
[1772911420851,0.07418617,67398.0,67388.0,0.09589834]
[1772911421899,0.07418617,67398.0,67388.0,0.07419663]
[1772911422143,0.00152,67397.0,67391.0,0.04691523]
[1772911422370,0.00136431,67397.0,67392.0,0.09589375]
[1772911422548,0.00136431,67397.0,67393.0,0.02170171]
[1772911422707,0.00120862,67397.0,67392.0,0.07419204]
[1772911423492,0.04614422,67418.0,67391.0,0.00152]
[1772911423666,0.00152,67417.0,67391.0,0.00152]
[1772911423861,0.00152,67416.0,67394.0,0.04691523]
[1772911424185,0.22,67413.0,67398.0,0.04691523]
[1772911424387,0.22,67413.0,67400.0,0.06861694]
[1772911424534,0.22,67413.0,67401.0,0.02170171]
[1772911424739,0.00152,67412.0,67401.0,0.02170171]
[1772911425192,0.22,67413.0,67401.0,0.02170171]
[1772911425370,0.00152,67411.0,67401.0,0.02170171]
[1772911425571,0.07569297,67410.0,67402.0,0.02170171]
[1772911425858,0.00152,67409.0,67402.0,0.02170171]
[1772911427864,0.07417517,67408.0,67402.0,0.02170171]
[1772911428840,0.07417517,67408.0,67402.0,0.0958831]
[1772911429894,0.07417517,67408.0,67399.0,0.07418453]
[1772911431630,0.07417517,67408.0,67397.0,0.07418507]
[1772911431813,0.07417517,67408.0,67392.0,0.0741922]
[1772911432150,0.02197183,67404.0,67388.0,0.07419718]
[1772911432378,0.02349183,67403.0,67388.0,0.07419718]
[1772911432555,0.02349183,67403.0,67388.0,0.09589889]
[1772911433684,0.00152,67403.0,67388.0,0.07419718]
[1772911433856,0.00152,67407.0,67392.0,0.04691523]
[1772911434056,0.02375566,67406.0,67399.0,0.0002]
[1772911434244,0.00152,67406.0,67400.0,0.02170171]
[1772911436172,0.00152,67406.0,67402.0,0.02170171]
[1772911436372,0.00152,67406.0,67401.0,0.07418287]
[1772911436747,0.0756977,67406.0,67400.0,0.07418376]
[1772911436950,0.0756977,67406.0,67399.0,0.0002]
[1772911436951,0.0756977,67406.0,67399.0,0.07438457]
[1772911439037,0.00152,67416.0,67400.0,0.00152]
[1772911439306,0.07438519,67418.0,67405.0,0.04691523]
[1772911439607,0.00152,67417.0,67407.0,0.02170171]
[1772911439805,0.07438519,67418.0,67407.0,0.02170171]
[1772911440005,0.00152,67417.0,67407.0,0.02170171]
[1772911440168,0.00152,67417.0,67408.0,0.07417517]
[1772911440365,0.00152,67417.0,67409.0,0.02244178]
[1772911440567,0.0756857,67417.0,67409.0,0.02244178]
[1772911440808,0.0756857,67417.0,67409.0,0.02256216]
[1772911441686,0.00152,67417.0,67409.0,0.02256216]
[1772911442312,0.01152,67417.0,67410.0,0.07417297]
[1772911442524,0.01,67417.0,67410.0,0.07417297]
[1772911442774,0.01152,67417.0,67410.0,0.07417297]
[1772911443363,0.01,67417.0,67410.0,0.07417297]
[1772911443723,0.07477672,67425.0,67412.0,0.02244178]
[1772911444363,0.07477672,67425.0,67413.0,0.07416967]
[1772911444566,0.07477672,67425.0,67414.0,0.02244178]
[1772911445076,0.00022001,67424.0,67414.0,0.02244178]
[1772911446513,0.00174001,67424.0,67416.0,0.02244178]
[1772911447263,0.00062001,67425.0,67416.0,0.02244178]
[1772911447563,0.00152,67427.0,67417.0,0.01622518]
[1772911448382,0.07567232,67429.0,67418.0,0.07416416]
[1772911448583,0.00152,67429.0,67419.0,0.01612326]
[1772911448796,0.07604617,67428.0,67418.0,0.07416416]
[1772911449227,0.02165665,67428.0,67418.0,0.07416416]
[1772911449579,0.02317665,67428.0,67418.0,0.07416416]
[1772911453441,0.09732988,67428.0,67418.0,0.07416416]
[1772911453797,0.09754989,67428.0,67418.0,0.07416416]
[1772911456359,0.07589324,67428.0,67418.0,0.07416416]
[1772911457435,0.07589324,67428.0,67416.0,0.03997906]
[1772911457645,0.07589324,67428.0,67403.0,0.07437991]
[1772911457855,0.07601365,67428.0,67403.0,0.07437991]
[1772911458059,0.02165665,67424.0,67403.0,0.07437991]
[1772911458270,0.05438952,67421.0,67403.0,0.07437991]
[1772911458477,0.07416306,67419.0,67403.0,0.0002]
[1772911458617,0.05438952,67418.0,67403.0,0.0002]
[1772911458816,0.05438952,67416.0,67403.0,0.0002]
[1772911459162,0.02165665,67413.0,67403.0,0.0002]
[1772911459366,0.02165665,67411.0,67403.0,0.0002]
[1772911460179,0.00152,67412.0,67402.0,0.0002]
[1772911460180,0.02165665,67409.0,67402.0,0.0002]
[1772911461208,0.07417517,67408.0,67402.0,0.0002]
[1772911462615,0.09583182,67408.0,67402.0,0.0002]
[1772911465136,0.07417517,67408.0,67400.0,0.0004]
[1772911465337,0.07417517,67408.0,67399.0,0.0002]
[1772911465338,0.02165665,67405.0,67391.0,0.0002]
[1772911465639,0.02165665,67399.0,67391.0,0.0002]
[1772911466444,0.02150665,67397.0,67391.0,0.0002]
[1772911467519,0.09569405,67397.0,67391.0,0.0002]
[1772911467760,0.00152,67398.0,67391.0,0.0002]
[1772911467962,0.02165665,67401.0,67391.0,0.0002]
[1772911468203,0.02165665,67401.0,67392.0,0.00032032]
[1772911469915,0.07418376,67401.0,67393.0,0.07419168]
[1772911470144,0.09584041,67401.0,67393.0,0.07419168]
[1772911470274,0.09584041,67401.0,67392.0,0.00032032]
[1772911470480,0.02165665,67398.0,67392.0,0.00032032]
[1772911470700,0.02165665,67398.0,67392.0,0.07451308]
[1772911470909,0.07418376,67401.0,67392.0,0.07451308]
[1772911471104,0.24350528,67401.0,67392.0,0.07451308]
[1772911471317,0.07418376,67401.0,67391.0,0.0002]
[1772911471516,0.05438952,67400.0,67388.0,0.0002]
[1772911471831,0.02165665,67398.0,67388.0,0.0002]
[1772911472186,0.09584392,67397.0,67388.0,0.0002]
[1772911475255,0.00152,67396.0,67388.0,0.0002]
[1772911475464,0.07418397,67400.0,67388.0,0.0002]
[1772911475662,0.07570397,67400.0,67388.0,0.00969141]
[1772911475860,0.02165665,67399.0,67388.0,0.0002]
[1772911476637,0.02187666,67397.0,67388.0,0.0002]
[1772911477833,0.02187666,67397.0,67385.0,0.07439987]
[1772911478037,0.02165665,67396.0,67385.0,0.07439987]
[1772911478977,0.02260834,67394.0,67385.0,0.0002]
[1772911480064,0.07418947,67395.0,67380.0,1.94958915]
[1772911480065,0.02260834,67390.0,67380.0,1.94958915]
[1772911480274,0.02260834,67388.0,67380.0,0.82267811]
[1772911480474,0.04402141,67390.0,67380.0,0.68658403]
[1772911480475,0.02260834,67386.0,67380.0,0.68658403]
[1772911480678,0.02260834,67386.0,67376.0,0.00575]
[1772911480806,0.02260834,67374.0,67359.0,0.07422838]
[1772911481012,0.02260834,67372.0,67360.0,0.07422785]
[1772911481381,0.02260834,67372.0,67359.0,0.07422838]
[1772911481382,0.00152,67373.0,67371.0,0.07458855]
[1772911482002,0.02260834,67372.0,67355.0,0.07423353]
[1772911482325,0.02260834,67372.0,67355.0,0.14375731]
[1772911482650,0.02260834,67372.0,67356.0,0.06940322]
[1772911483000,0.09682342,67372.0,67358.0,0.06940322]
[1772911483196,0.02260834,67372.0,67358.0,0.06940322]
[1772911483453,0.00152,67373.0,67358.0,0.06940322]
[1772911483649,0.00152,67372.0,67362.0,0.01986035]
[1772911483976,0.00152,67372.0,67363.0,0.01977205]
[1772911484174,0.02260834,67371.0,67357.0,0.07423133]
[1772911484472,0.02260834,67371.0,67366.0,0.0002]
[1772911484648,0.02260834,67371.0,67360.0,0.60655]
[1772911484992,0.02260834,67371.0,67361.0,0.07422692]
[1772911486175,0.09682432,67371.0,67361.0,0.07422692]
[1772911486503,0.02260834,67371.0,67361.0,0.07422692]
[1772911487001,0.00152,67370.0,67361.0,0.07422692]
[1772911488267,0.00152,67370.0,67356.0,0.01997664]
[1772911488268,0.06744553,67368.0,67356.0,0.0002886]
[1772911488484,0.02260834,67367.0,67358.0,0.51949327]
[1772911489098,0.07407141,67366.0,67358.0,0.51949327]
[1772911489301,0.02260834,67365.0,67355.0,0.00012056]
[1772911489503,0.02260834,67363.0,67350.0,0.0012]
[1772911489706,0.02260834,67363.0,67350.0,0.00040204]
[1772911489924,0.00342563,67362.0,67350.0,0.00040204]
[1772911490094,0.02603397,67361.0,67350.0,0.00040204]
[1772911490281,0.02260834,67359.0,67350.0,0.00040204]
[1772911490481,0.00342563,67360.0,67350.0,0.00040204]
[1772911490482,0.02260834,67357.0,67350.0,0.00040204]
[1772911491194,0.02260834,67355.0,67350.0,0.00040204]
[1772911491639,0.02260834,67355.0,67354.0,0.0002]
[1772911491838,0.02260834,67355.0,67350.0,0.00040204]
[1772911491839,0.02260834,67355.0,67347.0,0.0002]
[1772911492062,0.07423243,67356.0,67336.0,0.09004726]
[1772911492264,0.07423243,67356.0,67339.0,0.02047489]
[1772911492466,0.07423243,67356.0,67343.0,0.02047489]
[1772911492667,0.02260834,67355.0,67344.0,0.09004726]